bitfinex-derivatives/quotes_ETHF0:USTF0_20240922
["timestamp","ask_amount","ask_price","bid_price","bid_amount"]
[1726982398899,0.38649,2587.0,2586.9,0.3707]
[1726982400494,0.38649,2587.0,2586.5,0.38656]
[1726982400495,3.2078,2587.0,2586.5,0.38656]
[1726982400701,3.02,2586.8,2586.4,3.9816]
[1726982401006,2.624,2586.9,2586.5,3.2078]
[1726982401306,4.71442513,2587.7,2586.8,3.2078]
[1726982401501,0.38642,2587.5,2587.1,0.38646]
[1726982401710,3.02,2587.5,2587.2,0.4047]
[1726982401902,0.38644,2587.3,2587.2,0.4047]
[1726982402102,3.02,2587.3,2586.9,0.3717]
[1726982402411,3.02,2587.3,2586.7,0.78912]
[1726982402412,3.40649,2587.0,2586.8,0.4047]
[1726982403307,1.50662513,2587.7,2586.9,7.0734]
[1726982403503,0.38642,2587.5,2587.2,0.38645]
[1726982403701,0.3838,2587.7,2587.2,0.38645]
[1726982403702,0.3864,2587.6,2587.2,0.38645]
[1726982403903,0.38642,2587.5,2587.2,0.38645]
[1726982404203,0.3864,2587.6,2587.3,0.3717]
[1726982404407,0.3864,2587.6,2587.4,0.3739]
[1726982404806,3.39419,2587.7,2587.4,0.3739]
[1726982405006,0.77019,2587.7,2587.4,0.76032]
[1726982405230,0.38641,2587.5,2587.4,0.3739]
[1726982405504,0.3838,2587.7,2587.4,0.3739]
[1726982405708,3.40641,2587.5,2587.4,0.3739]
[1726982406110,6.8848,2587.5,2586.9,3.2078]
[1726982406308,3.40641,2587.5,2587.2,0.38644]
[1726982406605,3.40641,2587.5,2587.3,0.38643]
[1726982406606,3.02,2587.5,2587.3,0.38643]
[1726982406816,3.40642,2587.5,2587.2,0.38644]
[1726982407311,6.2278,2587.5,2587.2,0.38644]
[1726982407509,6.2278,2587.5,2587.1,0.38646]
[1726982407510,3.02,2587.3,2587.1,0.38646]
[1726982407812,3.40644,2587.3,2587.1,0.38646]
[1726982408005,3.02,2587.3,2587.1,0.38646]
[1726982408315,3.02,2587.3,2587.0,0.787]
[1726982408515,0.76727,2587.2,2587.0,0.787]
[1726982408816,3.40645,2587.3,2587.0,0.78658]
[1726982409120,0.38646,2587.2,2587.0,0.78658]
[1726982409312,3.40647,2587.1,2587.0,0.4001]
[1726982409704,3.02,2587.1,2587.0,0.4001]
[1726982409902,0.3808,2587.4,2586.7,0.4026]
[1726982409903,3.02,2587.3,2586.7,0.38652]
[1726982410106,3.02,2587.1,2586.8,0.3963]
[1726982410402,0.3865,2586.9,2586.8,0.3963]
[1726982410906,0.38652,2586.8,2586.5,0.38655]
[1726982411103,0.7673,2587.0,2586.7,1.17473]
[1726982411309,0.7673,2587.0,2586.7,0.7882]
[1726982411310,3.01051,2586.9,2586.7,0.7882]
[1726982411516,3.0105,2586.9,2586.7,1.17472]
[1726982411907,3.02,2587.1,2586.7,1.17472]
[1726982411908,3.40647,2587.1,2586.7,0.7882]
[1726982412115,3.40647,2587.1,2586.9,0.38649]
[1726982412514,3.40647,2587.1,2586.8,0.3662]
[1726982412515,3.40648,2587.1,2586.8,0.75271]
[1726982412907,0.38649,2587.0,2586.8,0.75271]
[1726982413114,0.3865,2586.9,2586.7,1.17472]
[1726982413306,3.02,2587.1,2586.8,0.38651]
[1726982413503,0.3703,2587.0,2586.7,0.7882]
[1726982413904,0.3703,2587.0,2586.7,1.17472]
[1726982413905,3.5781,2587.0,2586.7,1.17472]
[1726982414519,3.96459,2587.0,2586.7,1.17472]
[1726982414905,0.75679,2587.0,2586.8,0.38651]
[1726982415115,0.3703,2587.0,2586.8,0.38651]
[1726982415507,2.624,2587.0,2586.8,0.3865]
[1726982415711,2.624,2587.0,2586.7,0.7882]
[1726982415712,0.38652,2586.8,2586.7,0.7882]
[1726982415906,0.38652,2586.8,2586.7,0.3963]
[1726982415907,3.40652,2586.8,2586.7,0.3963]
[1726982416109,0.38651,2586.9,2586.7,0.3963]
[1726982416312,6.203,2587.0,2586.7,0.3963]
[1726982416313,0.38652,2586.8,2586.7,0.3963]
[1726982416509,3.40652,2586.8,2586.7,0.3963]
[1726982417124,0.38656,2586.5,2586.4,0.3662]
[1726982417426,2.624,2586.5,2586.3,0.3773]
[1726982417722,0.3694,2586.4,2586.3,0.3773]
[1726982418216,0.75597,2586.4,2586.3,0.3773]
[1726982418723,2.692,2586.5,2586.3,0.3773]
[1726982418916,0.38649,2587.0,2586.4,3.8664]
[1726982419222,0.38649,2587.0,2586.5,0.38655]
[1726982419615,0.38649,2587.0,2586.5,3.2078]
[1726982419814,0.38649,2587.0,2586.5,3.59436]
[1726982420219,0.38649,2587.0,2586.5,3.2078]
[1726982420415,0.38649,2587.0,2586.5,3.59436]
[1726982420621,0.38649,2587.0,2586.5,3.2078]
[1726982420924,0.38651,2586.9,2586.5,3.2078]
[1726982421110,0.38651,2586.9,2586.4,0.792]
[1726982421111,0.38653,2586.7,2586.4,0.792]
[1726982421311,6.2278,2586.8,2586.4,0.792]
[1726982421511,0.38656,2586.5,2586.4,0.792]
[1726982421819,0.38656,2586.5,2586.4,0.3942]
[1726982422218,3.2078,2586.5,2586.3,0.3773]
[1726982422410,0.38657,2586.4,2586.3,0.3773]
[1726982422616,3.59437,2586.4,2586.3,0.3773]
[1726982424625,10.48077,2586.4,2586.0,0.3766]
[1726982424827,10.48077,2586.4,2585.8,0.7598]
[1726982424828,0.96648,2586.3,2585.8,0.7598]
[1726982425019,5.8998,2586.2,2585.8,0.7598]
[1726982425213,0.38664,2586.0,2585.8,0.7598]
[1726982425721,0.38663,2586.1,2585.8,0.7598]
[1726982425928,2.692,2586.2,2585.8,0.7598]
[1726982426116,5.8998,2586.2,2585.8,0.7598]
[1726982426322,0.38664,2586.0,2585.8,0.7598]
[1726982427034,1.3845734,2586.0,2585.8,0.3821]
[1726982427219,0.38665,2585.9,2585.8,0.3821]
[1726982427616,0.38664,2586.0,2585.8,0.3821]
[1726982427817,0.38665,2585.9,2585.8,0.3821]
[1726982428826,10.095,2585.9,2585.5,0.3874]
[1726982429023,0.38668,2585.7,2585.6,0.3923]
[1726982429831,0.38676,2585.2,2584.4,4.102]
[1726982430034,1.00041354,2585.4,2584.9,0.3923]
[1726982430323,3.07973,2585.4,2585.0,0.7751]
[1726982430530,0.38674,2585.3,2585.0,0.7751]
[1726982430727,3.59454,2585.3,2585.0,0.7751]
[1726982431817,2.693,2585.4,2585.0,0.3821]
[1726982432023,0.38676,2585.2,2584.9,0.3923]
[1726982432227,0.38677,2585.2,2584.9,0.3923]
[1726982432519,2.693,2585.4,2584.9,0.3923]
[1726982432725,3.07973,2585.4,2584.9,0.77909]
[1726982433321,3.1872,2585.3,2584.9,0.77909]
[1726982433525,3.07973,2585.4,2584.9,0.7791]
[1726982434426,3.07973,2585.4,2584.9,0.3923]
[1726982434830,3.07973,2585.4,2584.9,0.7791]
[1726982435127,3.07973,2585.4,2584.9,0.3923]
[1726982435525,3.2078,2585.3,2584.9,0.3923]
[1726982436028,3.2078,2585.4,2584.9,0.3923]
[1726982436230,2.693,2585.6,2585.2,0.38675]
[1726982436424,2.693,2585.6,2585.3,0.79]
[1726982436619,2.693,2585.6,2585.4,0.3864]
[1726982436931,0.38671,2585.5,2585.4,0.3864]
[1726982437131,2.693,2585.6,2585.4,0.3864]
[1726982437132,3.0797,2585.6,2585.4,0.3864]
[1726982438825,0.38671,2585.5,2585.4,0.3864]
[1726982439021,6.61451,2585.5,2585.4,0.3864]
[1726982439225,0.38674,2585.3,2584.9,1.14479]
[1726982439520,10.0958,2585.5,2584.9,1.1372]
[1726982439521,6.2278,2585.2,2584.9,1.1372]
[1726982439721,0.38678,2585.0,2584.9,0.7695]
[1726982440327,0.38677,2585.1,2584.9,0.7695]
[1726982440828,3.2078,2585.2,2584.9,0.7695]
[1726982441025,3.02,2585.7,2585.1,0.38677]
[1726982441226,0.38671,2585.5,2585.2,0.3677]
[1726982441626,5.713,2585.7,2585.2,0.3677]
[1726982441827,0.38671,2585.6,2585.2,0.75445]
[1726982442125,5.713,2585.7,2585.2,0.3677]
[1726982442325,0.38669,2585.6,2585.2,0.3677]
[1726982442529,5.713,2585.7,2585.2,0.3677]
[1726982442530,0.38671,2585.5,2585.2,0.3677]
[1726982443729,0.3867,2585.6,2585.2,0.3677]
[1726982444028,0.38671,2585.5,2585.2,0.3677]
[1726982444624,3.59451,2585.5,2585.2,0.3677]
[1726982444825,0.38671,2585.5,2585.2,0.3677]
[1726982445031,3.59451,2585.5,2585.2,0.3677]
[1726982445336,0.38674,2585.3,2584.9,1.15629]
[1726982445542,3.02,2585.2,2584.8,3.2078]
[1726982445733,3.40677,2585.2,2584.9,0.3989]
[1726982445932,6.61457,2585.2,2584.9,0.3989]
[1726982446131,3.40677,2585.2,2584.9,0.3989]
[1726982446532,6.61457,2585.2,2584.9,0.3989]
[1726982446932,0.38677,2585.1,2584.9,0.3989]
[1726982447443,6.61456,2585.2,2584.9,0.3989]
[1726982447633,3.40676,2585.2,2584.9,0.3989]
[1726982448733,0.76053,2585.4,2584.9,0.3989]
[1726982448928,3.2078,2585.4,2584.9,0.3989]
[1726982449129,3.02,2585.5,2585.1,0.38676]
[1726982449130,3.40672,2585.5,2585.1,0.38676]
[1726982449342,3.40672,2585.5,2585.2,0.7887]
[1726982450639,6.61452,2585.5,2585.2,0.7887]
[1726982451029,3.59451,2585.5,2585.2,0.7887]
[1726982451640,2.636,2585.6,2585.2,0.7887]
[1726982451835,0.38672,2585.5,2585.2,0.7887]
[1726982452038,3.59452,2585.5,2585.2,0.7887]
[1726982452939,0.38673,2585.4,2585.2,0.7887]
[1726982453140,3.2078,2585.5,2585.2,0.7887]
[1726982453343,3.02,2585.4,2584.9,0.3989]
[1726982453534,3.02,2585.4,2585.0,0.38677]
[1726982453535,3.40673,2585.4,2585.0,0.38677]
[1726982454134,3.40673,2585.4,2584.9,0.78569]
[1726982454135,0.38675,2585.3,2584.9,0.78569]
[1726982454342,3.02,2585.4,2584.9,0.3989]
[1726982454535,6.2278,2585.0,2584.6,0.3886]
[1726982454735,6.2278,2585.0,2584.5,4.102]
[1726982454736,3.40684,2584.7,2584.5,4.4925]
[1726982454940,0.38684,2584.6,2584.5,0.3905]
[1726982455145,6.61464,2584.7,2584.5,0.3905]
[1726982455347,0.38684,2584.6,2584.5,0.3905]
[1726982455537,7.0766,2584.6,2584.1,0.3812]
[1726982455737,0.38687,2584.5,2584.1,0.7717]
[1726982455941,3.2078,2584.6,2584.1,0.7717]
[1726982456140,0.38687,2584.5,2584.1,0.7717]
[1726982456450,3.02,2584.2,2583.8,0.38695]
[1726982456754,3.02,2584.7,2584.3,0.38688]
[1726982457041,3.59462,2584.8,2584.6,0.38683]
[1726982457042,3.2078,2584.8,2584.6,0.38683]
[1726982457345,3.2078,2584.8,2584.4,0.7462]
[1726982457346,3.4068,2584.9,2584.7,0.3905]
[1726982457547,3.02,2584.9,2584.7,0.3905]
[1726982458247,3.4068,2584.9,2584.7,0.3905]
[1726982458544,3.02,2584.9,2584.7,0.3905]
[1726982458749,3.02,2585.1,2584.8,3.8688]
[1726982459041,3.02,2585.1,2584.9,1.133]
[1726982459243,3.02,2585.1,2584.9,0.7462]
[1726982460743,3.02,2585.1,2584.9,0.3766]
[1726982460946,0.38681,2584.9,2584.7,0.3905]
[1726982461245,3.02,2584.8,2584.7,0.3905]
[1726982461946,3.6113,2585.0,2584.7,0.3905]
[1726982461947,6.6313,2585.0,2584.7,0.3905]
[1726982462254,3.02,2585.0,2584.7,0.77732]
[1726982462751,3.02,2585.0,2584.7,0.3905]
[1726982463043,3.40679,2585.0,2584.7,0.3905]
[1726982463243,3.02,2585.0,2584.7,0.3905]
[1726982463449,3.40679,2585.0,2584.7,0.3905]
[1726982463647,3.02,2585.0,2584.7,0.3905]
[1726982463852,3.40679,2585.0,2584.7,0.3905]
[1726982465046,3.02,2585.0,2584.7,0.77733]
[1726982465248,3.02,2585.0,2584.7,0.3905]
[1726982465249,3.40678,2585.0,2584.7,0.3905]
[1726982466142,3.40678,2585.0,2584.7,0.77732]
[1726982466143,3.02,2585.0,2584.7,0.77732]
[1726982466745,4.04091354,2585.3,2584.8,3.8688]
[1726982466746,1.40391354,2585.3,2584.8,3.8688]
[1726982466946,6.2278,2585.5,2585.1,0.38676]
[1726982467154,6.61451,2585.5,2585.2,0.79]
[1726982467454,6.61452,2585.5,2585.2,1.192]
[1726982468149,7.61493354,2585.5,2585.2,1.192]
[1726982468446,7.61493354,2585.5,2585.2,0.79]
[1726982468651,1.38714354,2585.4,2585.2,0.79]
[1726982469043,1.38714354,2585.4,2585.2,0.3967]
[1726982469249,0.38674,2585.3,2585.2,0.3967]
[1726982469446,1.38715354,2585.3,2585.2,0.3967]
[1726982469944,0.38678,2585.0,2584.8,0.402]
[1726982470142,3.02,2585.0,2584.8,0.402]
[1726982470347,3.02,2585.0,2584.8,0.7914]
[1726982470550,3.40679,2585.0,2584.8,0.7914]
[1726982470743,4.40852088,2585.0,2584.8,0.3894]
[1726982470945,3.40679,2585.0,2584.8,0.3894]
[1726982471145,4.02173088,2585.0,2584.8,0.3894]
[1726982472352,4.40852088,2585.0,2584.8,0.3894]
[1726982473164,1.00173088,2584.9,2584.8,0.3894]
[1726982473351,4.40852088,2585.0,2584.8,0.3894]
[1726982473544,4.02173088,2585.0,2584.8,0.3894]
[1726982473759,1.00173088,2584.9,2584.8,0.3894]
[1726982474054,1.38853088,2584.9,2584.8,0.3894]
[1726982474253,1.00173088,2584.9,2584.8,0.3894]
[1726982475359,1.00173088,2584.9,2584.8,0.77621]
[1726982475555,1.00173088,2584.9,2584.8,0.3894]
[1726982475950,1.00173088,2584.9,2584.8,4.64501]
[1726982476149,1.00173088,2585.0,2584.9,0.3868]
[1726982476351,4.20953088,2585.2,2585.1,0.38677]
[1726982476658,3.2078,2585.2,2585.1,0.38677]
[1726982477547,6.2278,2585.2,2585.0,0.79068]
[1726982477755,7.22953088,2585.2,2585.0,0.79068]
[1726982477952,4.02173088,2585.2,2585.0,0.79068]
[1726982478258,1.00173088,2585.1,2584.8,0.3894]
[1726982478558,4.02173088,2585.0,2584.8,0.3894]
[1726982478853,1.00173088,2584.9,2584.8,0.77621]
[1726982479056,4.02173088,2585.0,2584.8,0.77621]
[1726982481247,4.02173088,2585.0,2584.8,0.3894]
[1726982482352,4.40852088,2585.0,2584.8,0.3894]
[1726982482553,1.00173088,2584.9,2584.8,0.3894]
[1726982483060,4.02173088,2585.0,2584.8,0.3894]
[1726982483363,0.99513088,2584.9,2584.8,0.3894]
[1726982483568,1.87192031,2585.1,2584.8,0.77621]
[1726982483765,0.3713,2585.1,2584.8,0.77621]
[1726982483959,0.3713,2585.1,2584.9,0.3868]
[1726982484154,1.87192031,2585.1,2584.8,0.3894]
[1726982484360,1.50062031,2585.1,2584.8,0.7762]
[1726982485660,1.50062031,2585.1,2584.9,0.3868]
[1726982485965,1.50062031,2585.1,2584.8,0.7762]
[1726982486463,1.50062031,2585.1,2584.9,0.3868]
[1726982486664,4.52062031,2585.2,2584.8,0.3894]
[1726982486864,1.87902031,2585.3,2585.0,0.38678]
[1726982487062,1.87902031,2585.3,2584.8,0.3894]
[1726982487063,1.50062031,2585.3,2585.2,0.38675]
[1726982487265,1.50062031,2585.4,2585.1,1.17376]
[1726982487463,4.90736031,2585.4,2585.1,0.787]
[1726982487659,4.90736031,2585.4,2585.1,1.17377]
[1726982487963,1.50062031,2585.3,2585.1,1.17376]
[1726982488460,4.70842031,2585.3,2584.8,1.40130025]
[1726982488771,3.02,2585.1,2584.9,0.38679]
[1726982488967,3.02,2585.1,2585.0,0.38678]
[1726982489353,1.50062031,2585.2,2585.1,0.38677]
[1726982489561,5.02082708,2585.4,2585.2,0.38675]
[1726982489562,1.50062031,2585.3,2585.2,0.38675]
[1726982489761,4.52062031,2585.4,2585.3,0.391]
[1726982490053,4.52062031,2585.4,2585.3,0.7782]
[1726982490257,4.52062031,2585.4,2585.3,1.1453]
[1726982491562,4.52062031,2585.4,2585.3,0.7782]
[1726982491767,4.90734031,2585.4,2585.3,0.3872]
[1726982491972,3.02,2585.4,2585.3,0.3872]
[1726982492361,4.52459421,2585.4,2585.3,0.3872]
[1726982492557,4.91131421,2585.4,2585.3,0.3872]
[1726982493069,6.2278,2585.4,2585.3,0.3872]
[1726982493264,6.61452,2585.4,2585.3,0.3872]
[1726982493571,8.61534708,2585.4,2585.3,0.3872]
[1726982493772,6.61452,2585.4,2585.3,0.3872]
[1726982494871,8.23371576,2585.4,2585.3,0.3872]
[1726982495266,5.21371576,2585.4,2585.3,0.77394]
[1726982495467,3.2078,2585.4,2585.3,0.77394]
[1726982495863,3.2078,2585.4,2585.3,0.3872]
[1726982496068,2.39262576,2585.5,2585.3,0.3872]
[1726982496265,3.40672,2585.4,2585.3,0.3872]
[1726982496476,5.02591576,2585.4,2585.0,3.9453]
[1726982496779,5.02591576,2585.4,2584.9,0.3749]
[1726982496780,4.52451316,2585.1,2584.9,0.3749]
[1726982496970,1.50451316,2585.0,2584.9,0.3749]
[1726982497168,1.89129316,2585.0,2584.9,0.3749]
[1726982497766,1.50451316,2585.0,2584.9,0.3749]
[1726982498078,5.41269576,2585.1,2584.9,0.3749]
[1726982498573,0.38678,2585.0,2584.9,0.3749]
[1726982498774,5.02591576,2585.1,2584.9,0.3749]
[1726982498969,0.38678,2585.0,2584.9,0.3749]
[1726982499275,2.39269576,2585.0,2584.9,0.3749]
[1726982500873,0.38678,2585.0,2584.9,0.3749]
[1726982501068,2.39269576,2585.0,2584.9,0.3749]
[1726982501678,2.36659576,2585.0,2584.9,0.3749]
[1726982501869,1.86535453,2585.0,2584.9,0.3749]
[1726982502175,0.36068,2585.0,2584.9,0.3749]
[1726982502676,0.38684,2584.7,2584.3,1.01190025]
[1726982502871,1.89175102,2584.7,2584.5,0.4005]
[1726982503180,1.89174102,2584.7,2584.5,0.78736]
[1726982503675,1.50491102,2584.7,2584.5,0.78735]
[1726982503870,1.89174102,2584.7,2584.5,0.4005]
[1726982504272,1.50491102,2584.7,2584.5,0.4005]
[1726982504781,1.50491102,2584.7,2584.5,0.78735]
[1726982505577,1.89174102,2584.7,2584.5,0.4005]
[1726982505776,1.50491102,2584.7,2584.5,0.78736]
[1726982505979,1.89174102,2584.7,2584.5,0.4005]
[1726982506681,1.50491102,2584.7,2584.5,0.4005]
[1726982507373,1.89175102,2584.7,2584.5,0.4005]
[1726982507769,3.2078,2584.6,2584.5,0.4005]
[1726982508073,1.89175102,2584.7,2584.5,0.4005]
[1726982508268,1.50491102,2584.7,2584.5,0.78736]
[1726982508473,1.50491102,2584.8,2584.6,0.38684]
[1726982508679,4.71271102,2584.9,2584.7,0.3698]
[1726982508877,1.50491102,2584.9,2584.8,0.395]
[1726982509073,1.89171102,2585.0,2584.8,0.395]
[1726982509880,1.50491102,2584.9,2584.8,0.395]
[1726982510375,1.50491102,2585.0,2584.8,0.395]
[1726982510972,1.50491102,2585.0,2584.9,0.3868]
[1726982511573,5.09281102,2585.2,2584.9,0.3868]
[1726982511769,5.09281102,2585.2,2585.0,0.3864]
[1726982511977,1.50491102,2585.2,2585.0,0.3864]
[1726982512170,5.02654803,2585.3,2585.0,0.3864]
[1726982512171,1.50491102,2585.3,2585.0,0.77317]
[1726982512374,1.50491102,2585.3,2585.0,0.3864]
[1726982512770,1.50491102,2585.3,2585.1,0.38676]
[1726982513479,1.50491102,2585.3,2585.2,0.4008]
[1726982514180,4.91165102,2585.3,2585.2,0.4008]
[1726982514381,3.40674,2585.3,2585.2,0.4008]
[1726982514989,3.02,2585.3,2585.2,0.4008]
[1726982515481,5.41329803,2585.3,2585.0,0.3864]
[1726982515780,1.50484522,2585.2,2585.0,0.77318]
[1726982516079,1.50484522,2585.3,2585.1,0.38677]
[1726982516980,2.00654803,2585.4,2585.1,0.38677]
[1726982516981,1.50484522,2585.2,2585.1,0.38677]
[1726982517182,1.50484522,2585.2,2585.0,0.3864]
[1726982517484,1.50484522,2585.2,2585.0,0.77317]
[1726982518286,1.48244522,2585.2,2585.0,0.77317]
[1726982518477,5.02654803,2585.3,2585.0,0.3864]
[1726982518678,0.3806,2585.2,2585.0,0.3864]
[1726982519083,0.3806,2585.2,2585.0,0.77318]
[1726982519283,2.38714803,2585.2,2585.0,0.77318]
[1726982519581,0.3806,2585.2,2585.0,0.3864]
[1726982520083,2.38714803,2585.2,2585.0,0.3864]
[1726982520283,0.3806,2585.2,2585.0,0.3864]
[1726982520683,0.38677,2585.1,2585.0,0.3864]
[1726982520983,2.39331803,2585.1,2585.0,0.3864]
[1726982522274,2.00654803,2585.1,2585.0,0.3864]
[1726982522487,0.38677,2585.1,2585.0,0.3864]
[1726982522679,2.39312271,2585.1,2585.0,0.3864]
[1726982523684,2.39312271,2585.1,2584.7,0.3698]
[1726982523685,0.3868,2584.9,2584.7,0.3698]
[1726982523883,0.38679,2585.0,2584.7,1.12632]
[1726982525085,2.00632151,2585.1,2584.7,0.3697]
[1726982525274,3.02,2585.0,2584.7,0.3697]
[1726982525479,5.02632151,2585.0,2584.7,0.3697]
[1726982525678,0.38681,2584.8,2584.7,0.3697]
[1726982526091,0.3665,2584.8,2584.7,0.3697]
[1726982526275,5.41311151,2585.0,2584.7,0.75653]
[1726982526479,0.3868,2584.9,2584.7,0.75653]
[1726982526684,5.21412151,2585.1,2584.7,0.3697]
[1726982526886,2.00632151,2585.2,2584.7,0.3697]
[1726982527090,2.00632151,2585.5,2585.1,3.02]
[1726982527282,2.00632151,2585.8,2585.6,0.38669]
[1726982527482,0.3885,2586.0,2585.8,0.38666]
[1726982527483,2.00632151,2586.0,2585.8,0.38666]
[1726982527689,2.00632151,2586.1,2585.9,0.38665]
[1726982527890,3.2078,2586.2,2585.8,0.38666]
[1726982528090,3.59441,2586.2,2585.7,1.1597]
[1726982528383,3.59441,2586.2,2585.8,0.38666]
[1726982528384,3.2078,2586.2,2585.8,0.38666]
[1726982528692,3.59441,2586.2,2585.8,0.38666]
[1726982529089,3.59441,2586.2,2585.7,1.54637]
[1726982529504,3.59441,2586.2,2585.8,0.38666]
[1726982529786,3.2078,2586.2,2585.7,1.54637]
[1726982529996,0.38662,2586.1,2585.7,1.54637]
[1726982530195,0.38666,2585.9,2585.7,1.1597]
[1726982530386,3.4128,2586.0,2585.7,1.1597]
[1726982530587,3.02,2586.0,2585.7,1.1597]
[1726982530891,3.2078,2586.2,2585.9,0.38664]
[1726982531193,3.2078,2586.2,2585.8,0.38665]
[1726982531690,3.59441,2586.2,2585.8,0.38665]
[1726982531882,3.2078,2586.2,2585.8,0.38666]
[1726982532786,3.1877,2586.2,2585.8,0.38666]
[1726982533789,3.57431,2586.2,2585.8,0.38666]
[1726982534494,0.38661,2586.2,2585.8,0.38666]
[1726982534797,3.59441,2586.2,2585.8,0.38666]
[1726982534990,3.59441,2586.2,2585.9,0.38665]
[1726982535191,3.2078,2586.2,2585.9,0.38665]
[1726982535893,0.3928,2586.3,2586.1,0.38662]
[1726982536095,0.3928,2586.3,2586.2,0.771]
[1726982537089,6.2278,2586.5,2586.2,1.1576]
[1726982537590,0.4005,2586.7,2586.5,0.38656]
[1726982537995,0.4005,2586.7,2586.3,0.78368]
[1726982537996,3.80704,2586.7,2586.3,0.78368]
[1726982538189,3.80704,2586.7,2586.3,0.3971]
[1726982538190,0.38655,2586.6,2586.3,0.3971]
[1726982539101,3.4205,2586.7,2586.2,0.771]
[1726982539102,6.61437,2586.5,2586.2,0.771]
[1726982539295,6.98787,2586.5,2586.2,0.771]
[1726982539690,3.2078,2586.4,2586.2,1.15759]
[1726982539890,3.6083,2586.7,2586.4,0.38657]
[1726982540188,6.57583,2586.7,2586.4,0.38657]
[1726982540593,6.57583,2586.7,2586.3,0.38658]
[1726982540789,3.2078,2586.7,2586.2,0.771]
[1726982540994,3.2078,2586.7,2586.5,0.38655]
[1726982541303,3.2078,2586.7,2586.2,0.771]
[1726982541304,3.2078,2586.7,2586.6,0.3927]
[1726982541799,0.38653,2586.8,2586.6,0.3927]
[1726982542000,0.38651,2586.9,2586.6,0.3927]
[1726982542604,0.38651,2586.9,2586.7,0.3807]
[1726982542993,6.61429,2587.0,2586.7,0.3807]
[1726982543191,9.19529,2587.0,2586.7,0.3807]
[1726982543599,3.2078,2587.0,2586.8,0.38651]
[1726982543802,3.2078,2587.0,2586.9,0.3865]
[1726982544304,3.2078,2587.0,2586.9,4.2521]
[1726982544507,3.5982,2587.5,2587.2,0.38645]
[1726982544693,3.2078,2587.5,2587.3,0.3689]
[1726982545015,3.2078,2587.5,2587.3,1.15273]
[1726982545308,3.2078,2587.5,2587.3,0.7663]
[1726982546206,3.2078,2587.5,2587.4,0.38643]
[1726982546597,3.2078,2587.5,2587.3,0.7663]
[1726982546797,3.2078,2587.5,2587.4,0.38643]
[1726982548301,3.1692,2587.5,2587.4,4.25123]
[1726982549406,3.1692,2587.5,2587.3,0.7663]
[1726982549805,3.1692,2587.5,2587.3,1.15274]
[1726982551403,3.1692,2587.5,2587.4,0.38643]
[1726982551608,3.1692,2587.5,2587.4,0.392]
[1726982553008,3.1692,2587.5,2587.4,0.77843]
[1726982553409,0.3728,2587.8,2587.4,4.2568]
[1726982553602,0.3728,2587.8,2587.6,0.38639]
[1726982553801,0.3728,2587.8,2587.5,0.3864]
[1726982554202,0.38635,2587.9,2587.5,0.3864]
[1726982554409,0.38634,2588.0,2587.6,0.38639]
[1726982554909,0.3653,2588.1,2587.8,0.38636]
[1726982555104,0.3653,2588.1,2587.9,0.8002]
[1726982555509,0.38634,2588.0,2587.9,0.3964]
[1726982556099,0.38636,2587.9,2587.5,0.7902]
[1726982556307,0.38636,2587.9,2587.6,0.3964]
[1726982556513,3.2078,2587.9,2587.6,0.3964]
[1726982557022,3.59416,2587.9,2587.6,0.78279]
[1726982560315,3.2078,2587.9,2587.6,0.3964]
[1726982560512,0.38637,2587.8,2587.6,0.3964]
[1726982561901,3.59417,2587.9,2587.6,0.3964]
[1726982562307,3.59417,2587.9,2587.7,0.38638]
[1726982562308,3.1428,2587.9,2587.7,0.38638]
[1726982562506,3.1428,2587.9,2587.7,0.38637]
[1726982562710,3.1428,2587.9,2587.8,0.7772]
[1726982563106,3.52915,2587.9,2587.8,0.7772]
[1726982563306,3.1428,2587.9,2587.8,0.3982]
[1726982564318,0.3653,2588.1,2587.6,0.3964]
[1726982564515,0.38637,2587.8,2587.6,0.3964]
[1726982566111,0.38636,2587.9,2587.6,0.78279]
[1726982566313,0.3653,2588.1,2587.6,7.2804]
[1726982566514,3.2078,2588.5,2588.0,0.38634]
[1726982566708,0.38631,2588.2,2588.1,0.4012]
[1726982566913,0.38631,2588.2,2588.1,0.7849]
[1726982567722,0.38631,2588.2,2588.1,0.4012]
[1726982567916,4.25031,2588.2,2588.1,0.4012]
[1726982568323,0.38634,2588.0,2587.8,0.77066]
[1726982568510,0.38635,2587.9,2587.8,0.3843]
[1726982575033,3.864,2587.9,2587.5,0.3864]
[1726982575327,0.38639,2587.7,2587.6,0.3747]
[1726982576217,0.76577,2587.8,2587.6,0.7611]
[1726982576630,0.76577,2587.8,2587.6,0.3747]
[1726982577424,0.76577,2587.8,2587.6,0.76109]
[1726982578520,0.67327,2587.8,2587.6,0.76109]
[1726982579127,0.38638,2587.7,2587.6,0.3747]
[1726982579329,0.67327,2587.8,2587.6,0.7611]
[1726982579536,0.38638,2587.7,2587.6,0.3747]
[1726982582334,0.38646,2587.2,2586.8,4.102]
[1726982582629,0.38646,2587.2,2587.0,0.3714]
[1726982582825,0.38646,2587.2,2587.0,0.75788]
[1726982583525,0.38645,2587.3,2587.0,0.75788]
[1726982583735,0.38645,2587.3,2587.1,0.3862]
[1726982584422,5.09862639,2587.4,2587.1,0.3862]
[1726982584627,0.38645,2587.3,2587.1,0.3862]
[1726982585430,0.38646,2587.2,2587.1,0.3862]
[1726982585823,1.49782639,2587.3,2587.1,0.3862]
[1726982585824,1.88427639,2587.3,2587.1,0.3862]